fUSD/lending_fUSD_20250823
["ID","MTS","AMOUNT","RATE_DAILY","PERIOD"]
[381020432,1755948677757,-400.0,0.0001452,2]
[381020433,1755948677766,-400.0,0.0001452,2]
[381020434,1755948677775,-400.0,0.0001452,2]
[381020435,1755948677784,-400.0,0.0001452,2]
[381020436,1755948677794,-400.0,0.0001452,2]
[381020437,1755948677803,-400.0,0.0001452,2]
[381020438,1755948677813,-714.21,0.0001452,2]
[381020439,1755948677822,-400.0,0.0001452,2]
[381020440,1755948677831,-400.0,0.0001452,2]
[381020441,1755948677842,-306.96789233,0.0001452,2]
[381020442,1755948677851,-400.0,0.0001452,2]
[381020443,1755948677861,-519.87,0.0001452,2]
[381020444,1755948677872,-400.0,0.0001452,2]
[381020445,1755948677882,-531.08,0.0001452,2]
[381020446,1755948677892,-620.42,0.0001452,2]
[381020447,1755948677903,-400.0,0.0001452,2]
[381020448,1755948677912,-400.0,0.0001452,2]
[381020449,1755948677924,-400.0,0.0001452,2]
[381020450,1755948677935,-542.8,0.0001452,2]
[381020451,1755948677945,-400.0,0.0001452,2]
[381020452,1755948677955,-560.81,0.0001452,2]
[381020453,1755948677964,-400.0,0.0001452,2]
[381020454,1755948677975,-704.32,0.0001452,2]
[381020455,1755948677986,-547.03,0.0001452,2]
[381020456,1755948677995,-481.6,0.0001452,2]
[381020457,1755948678009,-409.66,0.0001452,2]
[381020458,1755948678019,-576.9,0.0001452,2]
[381020459,1755948678028,-964.23,0.0001452,2]
[381020460,1755948678038,-400.0,0.0001452,2]
[381020461,1755948678048,-529.81,0.0001452,2]
[381020462,1755948678058,-400.0,0.0001452,2]
[381020463,1755948678067,-632.83,0.0001452,2]
[381020464,1755948678078,-510.55,0.0001452,2]
[381020465,1755948678088,-458.82,0.0001452,2]
[381020466,1755948678098,-400.0,0.0001452,2]
[381020467,1755948678108,-400.0,0.0001452,2]
[381020468,1755948678117,-400.0,0.0001452,2]
[381020469,1755948678126,-428.13,0.0001452,2]
[381020470,1755948678136,-519.13,0.0001452,2]
[381020471,1755948678146,-400.0,0.0001452,2]
[381020472,1755948678156,-400.0,0.0001452,2]
[381020473,1755948678166,-400.0,0.0001452,2]
[381020474,1755948678175,-462.62,0.0001452,2]
[381020475,1755948678185,-400.0,0.0001452,2]
[381020476,1755948678195,-400.0,0.0001452,2]
[381020477,1755948678205,-404.06,0.0001452,2]
[381020478,1755948678214,-400.0,0.0001452,2]
[381020479,1755948678224,-575.51,0.0001452,2]
[381020480,1755948678234,-400.0,0.0001452,2]
[381020481,1755948678243,-400.0,0.0001452,2]
[381020482,1755948678253,-400.0,0.0001452,2]
[381020483,1755948678264,-400.0,0.0001452,2]
[381020484,1755948678273,-400.0,0.0001452,2]
[381020485,1755948678283,-458.64,0.0001452,2]
[381020486,1755948678293,-400.0,0.0001452,2]
[381020487,1755948678303,-466.97,0.0001452,2]
[381020488,1755948678312,-400.0,0.0001452,2]
[381020489,1755948678322,-400.0,0.0001452,2]
[381020490,1755948678331,-400.0,0.0001452,2]
[381020491,1755948678340,-400.0,0.0001452,2]
[381020492,1755948678350,-400.95,0.0001452,2]
[381020493,1755948678360,-629.47,0.0001452,2]
[381020494,1755948678369,-783.24,0.0001452,2]
[381020495,1755948678379,-400.0,0.0001452,2]
[381020496,1755948678388,-580.94,0.0001452,2]
[381020497,1755948678398,-673.78,0.0001452,2]
[381020498,1755948678408,-538.24,0.0001452,2]
[381020499,1755948678417,-400.0,0.0001452,2]
[381020500,1755948678426,-453.24,0.0001452,2]
[381020501,1755948678436,-584.32,0.0001452,2]
[381020502,1755948678446,-509.76,0.0001452,2]
[381020503,1755948678456,-400.0,0.0001452,2]
[381020504,1755948678467,-468.07,0.0001452,2]
[381020505,1755948678477,-456.02,0.0001452,2]
[381020506,1755948678487,-400.0,0.0001452,2]
[381020507,1755948678497,-400.0,0.0001452,2]
[381020508,1755948678509,-532.21,0.0001452,2]
[381020509,1755948678519,-400.0,0.0001452,2]
[381020510,1755948678528,-865.07,0.0001452,2]
[381020511,1755948678539,-517.01,0.0001452,2]
[381020512,1755948678549,-400.0,0.0001452,2]
[381020513,1755948678558,-408.97,0.0001452,2]
[381020514,1755948678569,-400.0,0.0001452,2]
[381020515,1755948678578,-400.0,0.0001452,2]
[381020516,1755948678589,-400.0,0.0001452,2]
[381020517,1755948678598,-609.39,0.0001452,2]
[381020518,1755948678608,-400.0,0.0001452,2]
[381020519,1755948678617,-590.54,0.0001452,2]
[381020520,1755948678627,-608.53,0.0001452,2]
[381020521,1755948678637,-530.7,0.0001452,2]
[381020522,1755948678647,-400.0,0.0001452,2]
[381020523,1755948678656,-465.23,0.0001452,2]
[381020524,1755948678667,-400.0,0.0001452,2]
[381020525,1755948678676,-400.0,0.0001452,2]
[381020526,1755948678686,-537.11,0.0001452,2]
[381020527,1755948678696,-400.0,0.0001452,2]
[381020528,1755948678706,-894.47,0.0001452,2]
[381020529,1755948678716,-451.16,0.0001452,2]
[381020530,1755948678727,-400.0,0.0001452,2]
[381020531,1755948678736,-400.0,0.0001452,2]
[381020532,1755948678746,-400.0,0.0001452,2]
[381020533,1755948678756,-400.0,0.0001452,2]
[381020534,1755948678766,-407.74242921,0.0001452,2]
[381020535,1755948678776,-597.75,0.0001452,2]
[381020536,1755948678787,-554.13,0.0001452,2]
[381020537,1755948678797,-881.87,0.0001452,2]
[381020538,1755948678807,-400.0,0.0001452,2]
[381020539,1755948678816,-400.0,0.0001452,2]
[381020540,1755948678827,-400.0,0.0001452,2]
[381020541,1755948678837,-400.0,0.0001452,2]
[381020542,1755948678847,-489.36,0.0001452,2]
[381020543,1755948678858,-477.34,0.0001452,2]
[381020544,1755948678869,-400.0,0.0001452,2]
[381020545,1755948678879,-527.68,0.0001452,2]
[381020546,1755948678888,-400.0,0.0001452,2]
[381020547,1755948678898,-744.52,0.0001452,2]
[381020548,1755948678907,-400.0,0.0001452,2]
[381020549,1755948678917,-885.96,0.0001452,2]
[381020550,1755948678927,-842.51,0.0001452,2]
[381020551,1755948678938,-267.88002788,0.0001452,2]
[381020552,1755948678949,-400.0,0.0001452,2]
[381020553,1755948678959,-400.0,0.0001452,2]
[381020554,1755948678969,-765.59,0.0001452,2]
[381020555,1755948678978,-716.18,0.0001452,2]
[381020556,1755948678988,-735.47,0.0001452,2]
[381020557,1755948678998,-506.63,0.0001452,2]
[381020558,1755948679013,-601.26,0.0001452,2]
[381020559,1755948679022,-440.52,0.0001452,2]
[381020560,1755948679032,-440.02035534,0.0001452,2]
[381020561,1755948679042,-400.0,0.0001452,2]
[381020562,1755948679052,-856.84,0.0001452,2]
[381020563,1755948679062,-447.15,0.0001452,2]
[381020564,1755948679071,-777.44,0.0001452,2]
[381020565,1755948679082,-400.0,0.0001452,2]
[381020566,1755948679096,-545.54,0.0001452,2]
[381020567,1755948679105,-424.76,0.0001452,2]
[381020568,1755948679116,-630.73,0.0001452,2]
[381020569,1755948679126,-545.06,0.0001452,2]
[381020570,1755948679135,-400.0,0.0001452,2]
[381020571,1755948679147,-465.31,0.0001452,2]
[381020572,1755948679156,-655.34,0.0001452,2]
[381020573,1755948679166,-829.31,0.0001452,2]
[381020574,1755948679176,-727.57,0.0001452,2]
[381020575,1755948679185,-786.65,0.0001452,2]
[381020576,1755948679195,-528.08,0.0001452,2]
[381020577,1755948679204,-400.0,0.0001452,2]
[381020578,1755948679214,-400.0,0.0001452,2]
[381020579,1755948679224,-400.0,0.0001452,2]
[381020580,1755948679233,-900.25,0.0001452,2]
[381020581,1755948679243,-400.0,0.0001452,2]
[381020582,1755948679252,-400.0,0.0001452,2]
[381020583,1755948679261,-245.23964201,0.0001452,2]
[381020584,1755948682989,-6093.0,0.00013455,2]
[381020585,1755948683000,-881.79,0.00013698,2]
[381020586,1755948683013,-659.51,0.00013698,2]
[381020587,1755948683023,-881.79,0.00013972,2]
[381020588,1755948683032,-659.51,0.00013972,2]
[381020589,1755948683043,-881.79,0.00014246,2]
[381020590,1755948683053,-821.74919041,0.00014246,2]
[381020591,1755948683063,-659.51,0.00014246,2]
[381020592,1755948683071,-301.35080959,0.0001452,2]
[381020593,1755948683084,-190.8595484,0.0001452,2]
[381020594,1755948683094,-400.0,0.0001452,2]
[381020595,1755948683104,-400.0,0.0001452,2]
[381020596,1755948683114,-598.59,0.0001452,2]
[381020597,1755948683123,-298.5504516,0.0001452,2]
[381020598,1755948683135,-101.4495484,0.0001452,2]
[381020599,1755948683144,-400.0,0.0001452,2]
[381020600,1755948683153,-369.15809828,0.0001452,2]
[381020601,1755948683169,-64.82190172,0.0001452,2]
[381020602,1755948683179,-830.66,0.0001452,2]
[381020603,1755948683189,-973.51,0.0001452,2]
[381020604,1755948683198,-400.0,0.0001452,2]
[381020605,1755948683208,-469.45,0.0001452,2]
[381020606,1755948683217,-1013.02,0.0001452,2]
[381020607,1755948683227,-400.0,0.0001452,2]
[381020608,1755948683238,-400.0,0.0001452,2]
[381020609,1755948683251,-635.62,0.0001452,2]
[381020610,1755948683261,-400.0,0.0001452,2]
[381020611,1755948683271,-400.0,0.0001452,2]
[381020612,1755948683282,-647.79,0.0001452,2]
[381020613,1755948683292,-400.0,0.0001452,2]
[381020614,1755948683301,-948.76,0.0001452,2]
[381020615,1755948683310,-571.6,0.0001452,2]
[381020616,1755948683319,-569.16,0.0001452,2]
[381020617,1755948683329,-604.26,0.0001452,2]
[381020618,1755948683339,-859.96,0.0001452,2]
[381020619,1755948683349,-400.0,0.0001452,2]
[381020620,1755948683358,-51.39020115,0.0001452,2]
[381020621,1755948683371,-354.87979885,0.0001452,2]
[381020622,1755948683381,-74.3225151,0.0001452,2]
[381020623,1755948683442,-150.0,0.00013564,2]
[381020624,1755948683452,-173.7,0.00013969,2]
[381020625,1755948683461,-165.59187735,0.0001452,2]
[381020626,1755948683473,-160.08560755,0.0001452,2]
[381020627,1755948683483,-400.0,0.0001452,2]
[381020628,1755948683493,-762.09375246,0.0001452,2]
[381020629,1755948684178,-200.0,0.00013564,2]
[381020630,1755948684189,-150.0,0.00013564,2]
[381020631,1755948684199,-799.21,0.00013691,2]
[381020632,1755948684210,-936.57,0.00013698,2]
[381020633,1755948684219,-400.0,0.00013698,2]
[381020634,1755948684230,-311.22579425,0.00013698,2]
[381020635,1755948684242,-88.77420575,0.00013698,2]
[381020636,1755948684252,-400.0,0.00013698,2]
[381020637,1755948684262,-470.90971459,0.00013972,2]
[381020638,1755948684309,-465.66028541,0.00013972,2]
[381020639,1755948684319,-355.75305783,0.00013972,2]
[381020640,1755948684332,-44.24694217,0.00013972,2]
[381020641,1755948684345,-158.831932,0.00013972,2]
[381020642,1755948684355,-170.89065291,0.00013972,2]
[381020643,1755948684378,-229.10934709,0.00013972,2]
[381020644,1755948684388,-400.0,0.00013972,2]
[381020645,1755948684399,-529.24785291,0.00014246,2]
[381020646,1755948684415,-407.32214709,0.00014246,2]
[381020647,1755948684427,-158.831932,0.00014246,2]
[381020648,1755948684438,-73.06972802,0.00014246,2]
[381020649,1755948684452,-326.93027198,0.00014246,2]
[381020650,1755948684462,-400.0,0.00014246,2]
[381020651,1755948684473,-119.99624754,0.0001452,2]
[381020652,1755948684484,-332.9527938,0.0001452,2]
[381020653,1755948684497,-67.0472062,0.0001452,2]
[381020654,1755948684507,-400.0,0.0001452,2]
[381020655,1755948684517,-585.77,0.0001452,2]
[381020656,1755948684527,-356.08849134,0.0001452,2]
[381020657,1755948684585,-43.91150866,0.0001452,2]
[381020658,1755948684596,-502.66,0.0001452,2]
[381020659,1755948684606,-430.75752839,0.0001452,2]
[381020660,1755948705447,500.0,0.00028767,120]
[381020661,1755948732167,165.0,0.00028767,120]
[381020663,1755948758535,2000.0,0.0002876,120]
[381020664,1755948761838,2000.0,0.0002876,120]
[381020665,1755948773678,611.9,0.00028767,120]
[381020666,1755948788927,1125.21,0.00028767,120]
[381020667,1755948798236,500.0,0.00028766,120]
[381020668,1755948802009,2000.0,0.00027122,120]
[381020669,1755948802728,2000.0,0.00028766,120]
[381020670,1755948809567,500.0,0.00028766,120]
[381020671,1755948814289,500.0,0.00027122,120]
[381020672,1755948814763,500.0,0.00028766,120]
[381020673,1755948854000,222.91618352,0.00028667,120]
[381020674,1755948895426,371.9199393,0.00028767,120]
[381020676,1755948987335,2954.56624866,0.000287,120]
[381020677,1755949000848,2000.0,0.0002876,120]
[381020678,1755949002179,2000.0,0.0002876,120]
[381020679,1755949003009,2000.0,0.0002876,120]
[381020680,1755949004045,2000.0,0.0002876,120]
[381020681,1755949004605,2000.0,0.0002876,120]
[381020682,1755949008706,2000.0,0.0002876,120]
[381020683,1755949009451,2000.0,0.0002876,120]
[381020684,1755949010297,2000.0,0.0002876,120]
[381020685,1755949015171,2000.0,0.0002876,120]
[381020686,1755949015588,2000.0,0.0002876,120]
[381020687,1755949016749,2000.0,0.0002876,120]
[381020688,1755949017598,2000.0,0.0002876,120]
[381020689,1755949023454,2000.0,0.0002876,120]
[381020690,1755949033069,1767.0,0.0002876,120]
[381020692,1755949236455,312.64498085,0.00028767,120]
[381020693,1755949243822,2000.75,0.00028767,120]
[381020695,1755949344641,500.0,0.00028767,120]
[381020696,1755949346621,500.0,0.00028767,120]
[381020697,1755949348517,500.0,0.00028767,120]
[381020698,1755949354594,528.34177976,0.00028767,120]
[381020700,1755949397031,500.0,0.00028766,120]
[381020701,1755949402017,2000.0,0.00027654,120]
[381020702,1755949402405,2000.0,0.00028766,120]
[381020703,1755949407663,500.0,0.00028766,120]
[381020705,1755949413400,500.0,0.00027728,120]
[381020706,1755949413654,500.0,0.00028766,120]
[381020710,1755949606605,500.0,0.00028767,120]
[381020711,1755949636454,450.76657953,0.00028766,120]
[381020713,1755949772635,200.0,0.00028667,120]
[381020717,1755949832268,-500.0,0.00011988,2]
[381020718,1755949832279,-500.0,0.00012034,2]
[381020719,1755949832289,-408.57,0.00012051,2]
[381020720,1755949832299,-250.0,0.00012064,2]
[381020721,1755949832309,-500.0,0.00012171,2]
[381020722,1755949832319,-1200.0,0.00012335,2]
[381020723,1755949832329,-214.17,0.00012336,2]
[381020724,1755949832338,-301.17,0.00012336,2]
[381020725,1755949832348,-211.29,0.00012336,2]
[381020726,1755949832357,-209.63,0.00012336,2]
[381020727,1755949832367,-211.48,0.00012336,2]
[381020728,1755949832379,-301.05,0.00012336,2]
[381020729,1755949832389,-215.23,0.00012336,2]
[381020730,1755949832399,-215.26,0.00012336,2]
[381020731,1755949832408,-300.6,0.00012336,2]
[381020732,1755949832418,-208.6,0.00012336,2]
[381020733,1755949832428,-211.04,0.00012336,2]
[381020734,1755949832438,-212.96,0.00012336,2]
[381020735,1755949832448,-300.29,0.00012337,2]
[381020736,1755949832458,-216.61,0.00012337,2]
[381020737,1755949832468,-210.08,0.00012337,2]
[381020738,1755949832479,-138.43096581,0.00012337,2]
[381020739,1755949832491,-71.83903419,0.00012337,2]
[381020740,1755949832500,-213.73,0.00012337,2]
[381020741,1755949832510,-303.39,0.00012344,2]
[381020742,1755949832519,-6445.8,0.00012344,2]
[381020743,1755949832529,-150.0,0.00012398,2]
[381020744,1755949832539,-213.43,0.00012399,2]
[381020745,1755949832549,-214.31,0.00012399,2]
[381020746,1755949832559,-302.77,0.00012399,2]
[381020747,1755949832569,-214.85,0.00012399,2]
[381020748,1755949832579,-212.55,0.00012399,2]
[381020749,1755949832589,-302.3,0.00012399,2]
[381020750,1755949832598,-214.13,0.00012399,2]
[381020751,1755949832608,-213.51,0.00012399,2]
[381020752,1755949832617,-215.47,0.00012399,2]
[381020753,1755949832626,-304.97,0.00012399,2]
[381020754,1755949832636,-215.18,0.00012399,2]
[381020756,1755949832646,-216.61,0.00012399,2]
[381020758,1755949832657,-304.99,0.00012399,2]
[381020760,1755949832667,-208.47,0.00012399,2]
[381020762,1755949832676,-214.84,0.00012399,2]
[381020765,1755949832686,-214.04,0.00012399,2]
[381020767,1755949832695,-211.19,0.00012399,2]
[381020769,1755949832705,-304.88,0.00012399,2]
[381020771,1755949832714,-213.6,0.000124,2]
[381020772,1755949832724,-212.25,0.000124,2]
[381020775,1755949832734,-212.83,0.000124,2]
[381020777,1755949832743,-209.8,0.000124,2]
[381020779,1755949832752,-300.48,0.00012404,2]
[381020781,1755949832761,-301.84,0.00012404,2]
[381020783,1755949832770,-151.5,0.00012462,2]
[381020785,1755949832780,-208.9,0.00012462,2]
[381020787,1755949832789,-301.72,0.00012462,2]
[381020789,1755949832798,-208.86,0.00012462,2]
[381020791,1755949832807,-216.54,0.00012462,2]
[381020793,1755949832817,-214.6,0.00012462,2]
[381020795,1755949832826,-301.14,0.00012462,2]
[381020797,1755949832836,-209.67,0.00012462,2]
[381020799,1755949832845,-210.33,0.00012462,2]
[381020801,1755949832855,-303.39,0.00012462,2]
[381020803,1755949832864,-211.22,0.00012462,2]
[381020805,1755949832874,-214.75,0.00012462,2]
[381020807,1755949832883,-216.35,0.00012462,2]
[381020809,1755949832893,-211.58,0.00012462,2]
[381020811,1755949832902,-303.94,0.00012462,2]
[381020813,1755949832912,-214.53,0.00012463,2]
[381020815,1755949832922,-210.18,0.00012463,2]
[381020817,1755949832931,-215.7,0.00012463,2]
[381020819,1755949832941,-303.48,0.00012476,2]
[381020821,1755949832951,-1000.0,0.00012525,2]
[381020823,1755949832961,-152.31,0.00012906,2]
[381020825,1755949832971,-209.52,0.00012906,2]
[381020827,1755949832982,-209.32,0.00012906,2]
[381020829,1755949832991,-212.32,0.00012906,2]
[381020831,1755949833001,-305.42,0.00012906,2]
[381020833,1755949833011,-150.51,0.00012906,2]
[381020835,1755949833020,-215.74,0.00012906,2]
[381020837,1755949833030,-211.09,0.00012906,2]
[381020839,1755949833040,-300.45,0.00012906,2]
[381020841,1755949833050,-215.0,0.00012906,2]
[381020843,1755949833060,-215.52,0.00012906,2]
[381020845,1755949833070,-303.94,0.00012906,2]
[381020847,1755949833082,-214.6,0.00012906,2]
[381020849,1755949833092,-152.14,0.00012906,2]
[381020851,1755949833103,-211.75,0.00012906,2]
[381020853,1755949833113,-208.44,0.00012906,2]
[381020855,1755949833122,-300.99,0.00012906,2]
[381020857,1755949833132,-211.54,0.00012906,2]
[381020859,1755949833142,-214.42,0.00012906,2]
[381020861,1755949833152,-210.22,0.00012906,2]
[381020863,1755949833162,-214.34,0.00012906,2]
[381020865,1755949833172,-305.75,0.00012911,2]
[381020867,1755949833182,-303.39,0.00012911,2]
[381020869,1755949833192,-151.0,0.00012946,2]
[381020870,1755949833202,-322.6107,0.00012946,2]
[381020872,1755949833212,-721.12765535,0.00012946,2]
[381020873,1755949833223,-153.75704231,0.00012946,2]
[381020874,1755949833233,-1000.0,0.00012946,2]
[381020875,1755949833587,-1000.0,0.00012946,2]
[381020876,1755949833606,-1000.0,0.00012946,2]
[381020877,1755949833616,-1000.0,0.00012946,2]
[381020878,1755949833626,-1000.0,0.00012946,2]
[381020879,1755949833636,-151.0,0.00012946,2]
[381020880,1755949833645,-277.35679052,0.00012946,2]
[381020881,1755949833656,-507.62835177,0.00012946,2]
[381020882,1755949833665,-151.0,0.00012946,2]
[381020883,1755949833675,-151.85,0.00012971,2]
[381020884,1755949833685,-152.64,0.00012971,2]
[381020885,1755949833695,-213.27,0.00012971,2]
[381020886,1755949833704,-151.9,0.00012971,2]
[381020887,1755949833713,-214.67,0.00012971,2]
[381020888,1755949833723,-212.88,0.00012971,2]
[381020889,1755949833733,-304.58,0.00012971,2]
[381020890,1755949833743,-211.84,0.00012971,2]
[381020891,1755949833753,-215.8,0.00012971,2]
[381020892,1755949833763,-216.49,0.00012971,2]
[381020893,1755949833772,-213.86,0.00012971,2]
[381020894,1755949833783,-300.5,0.00012971,2]
[381020895,1755949833792,-300.95,0.00012971,2]
[381020896,1755949833802,-214.95,0.00012973,2]
[381020897,1755949833812,-211.96,0.00012973,2]
[381020898,1755949833822,-209.43,0.00012973,2]
[381020899,1755949833833,-208.78,0.00012973,2]
[381020900,1755949833843,-210.98,0.00012973,2]
[381020901,1755949833853,-302.04,0.00012984,2]
[381020902,1755949833863,-302.88,0.00012984,2]
[381020903,1755949833872,-1216.74834714,0.00013,2]
[381020904,1755949833903,-271.3781,0.00013,2]
[381020905,1755949834024,-718.37344383,0.00013,2]
[381020907,1755949838215,-452.11000654,0.00011928,2]
[381020908,1755949838227,-37.50529646,0.00011928,2]
[381020909,1755949838238,-3211.33355842,0.00013,2]
[381020910,1755949838381,-364.73999997,0.00013,2]
[381021121,1755949840386,-1156.2,0.00013,2]
[381021126,1755949840430,-7692.7369583,0.00013,2]
[381021128,1755949840442,-783.22351261,0.00013,2]
[381021413,1755949843221,-4213.07855643,0.00013,2]
[381021429,1755949843453,-1685.65445602,0.00013,2]
[381021431,1755949843464,-25304.07867982,0.00013,2]
[381021433,1755949843475,-524.68431067,0.00013,2]
[381021680,1755949846196,-3843.70484,0.00013,2]
[381021694,1755949846460,-393.01271029,0.00013,2]
[381021701,1755949846523,-6417.00000001,0.00013,2]
[381021703,1755949846535,-17698.05252649,0.00013,2]
[381021706,1755949846546,-799.21,0.00013,2]
[381021708,1755949846555,-156.587,0.00013001,2]
[381021710,1755949846569,-215.59,0.00013036,2]
[381021712,1755949846578,-215.84,0.00013036,2]
[381021714,1755949846588,-303.39,0.00013036,2]
[381021716,1755949846598,-210.45,0.00013036,2]
[381021718,1755949846607,-213.23,0.00013036,2]
[381021720,1755949846633,-213.54,0.00013036,2]
[381021722,1755949846643,-300.34,0.00013036,2]
[381021724,1755949846653,-212.91,0.00013036,2]
[381021725,1755949846662,-213.6,0.00013036,2]
[381021726,1755949846672,-301.08,0.00013036,2]
[381021727,1755949846682,-212.74,0.00013036,2]
[381021728,1755949846692,-214.05,0.00013036,2]
[381021729,1755949846702,-208.52,0.00013036,2]
[381021730,1755949846712,-303.04,0.00013036,2]
[381021731,1755949846721,-210.47,0.00013036,2]
[381021732,1755949846733,-209.37,0.00013036,2]
[381021733,1755949846744,-799.21,0.00013041,2]
[381021734,1755949846754,-162.380719,0.00013056,2]
[381021735,1755949846764,-164.39,0.00013088,2]
[381021736,1755949846774,-168.3888056,0.00013111,2]
[381021737,1755949846784,-500.0,0.00013137,2]
[381021738,1755949846794,-173.7,0.00013147,2]
[381021739,1755949846804,-173.7,0.00013147,2]
[381021741,1755949846814,-174.61919141,0.00013166,2]
[381021743,1755949846827,-347.4,0.00013178,2]
[381021745,1755949846837,-2500.0,0.00013204,2]
[381021747,1755949846847,-310.0,0.00013204,2]
[381021749,1755949846857,-500.0,0.00013204,2]
[381021751,1755949846867,-181.08010149,0.00013221,2]
[381021753,1755949846876,-187.78006525,0.00013276,2]
[381021755,1755949846886,-925.0,0.00013288,2]
[381021759,1755949847354,-2030.0,0.00013288,2]
[381021760,1755949847385,-3373.0,0.00013288,2]
[381021761,1755949847395,-1255.0,0.00013288,2]
[381021762,1755949847405,-1657.0,0.00013288,2]
[381021763,1755949847415,-599.0,0.00013288,2]
[381021764,1755949847426,-566.0,0.00013288,2]
[381021765,1755949847436,-1298.0,0.00013288,2]
[381021766,1755949847446,-4153.0,0.00013288,2]
[381021767,1755949847457,-150.0,0.00013288,2]
[381021768,1755949847467,-6093.0,0.00013288,2]
[381021769,1755949847476,-150.0,0.00013288,2]
[381021770,1755949847485,-676.88934542,0.00013288,2]
[381021771,1755949856587,1000.0,0.00028767,120]
[381021772,1755949870101,1000.0,0.00028767,120]
[381021774,1755949939387,500.0,0.00028767,120]
[381021775,1755949940477,200.0,0.0002876,120]
[381021776,1755949995981,535.733544,0.00025559,120]
[381021777,1755949999331,2000.0,0.00028766,120]
[381021778,1755950004501,526.469411,0.00025559,120]
[381021779,1755950010268,500.0,0.00028766,120]
[381021781,1755950120562,153.0,0.0002876,120]
[381021782,1755950135130,154.0,0.0002876,120]
[381021783,1755950135615,154.0,0.0002876,120]
[381021784,1755950136186,154.0,0.0002876,120]
[381021786,1755950295671,166.0,0.00028767,120]
[381021787,1755950363655,288.0,0.00028767,120]
[381021788,1755950394583,155.0,0.00028767,120]
[381021789,1755950414085,222.0,0.00028767,120]
[381021793,1755950471418,237.47833194,0.00028767,120]
[381021794,1755950598375,2000.0,0.00028297,120]
[381021795,1755950606940,500.0,0.00028082,120]
[381021801,1755951031432,-220.0,0.000116,2]
[381021802,1755951031443,-438.4,0.00011896,2]
[381021803,1755951031453,-129.70785298,0.00011907,2]
[381021804,1755951035179,-1370.29214702,0.00011907,2]
[381021805,1755951035190,-580.41,0.00011913,2]
[381021806,1755951035200,-906.63588559,0.00012018,2]
[381021807,1755951035212,-93.36411441,0.00012018,2]
[381021808,1755951035222,-167.88,0.0001203,2]
[381021809,1755951035232,-599.54,0.00012049,2]
[381021810,1755951035241,-1200.0,0.00012125,2]
[381021811,1755951035251,-5103.21,0.00012126,2]
[381021812,1755951035261,-150.0,0.00012171,2]
[381021813,1755951035271,-250.0,0.00012205,2]
[381021814,1755951035287,-685.59,0.00012215,2]
[381021815,1755951035297,-328.41,0.00012217,2]
[381021816,1755951035306,-327.95346892,0.0001242,2]
[381021817,1755951035316,-151.0,0.0001242,2]
[381021818,1755951035326,-151.0,0.0001242,2]
[381021819,1755951035336,-151.0,0.0001242,2]